Cogmind - Beta 16 @@@ ROGUE MODE // 2025.11.11 @ 00:08:29 Player: UnsuspectingSawblade Result: Self-destructed Performance ------------- Evolutions (2) 1000 Regions Visited (5) 1000 Robots Destroyed (26) 130 Value Destroyed (505) 505 Prototype IDs (2) 40 Alien Tech Used (0) 0 Bonus (300) 300 TOTAL SCORE: 2975 Bonus ------- Aligned with FarCom 300 Cogmind --------- Core Integrity 430/550 Matter 150/300 Energy 100/100 System Corruption 1% Temperature Cool (0) Movement Core (50) Location -8/Materials Parts ------- > --- POWER (1) -------- (None) > --- PROPULSION (4) --- (None) > --- UTILITY (4) ------ (None) > --- WEAPON (2) ------- (None) > --- INVENTORY (5) ---- Light Treads Improved Terrain Scanner Heavy Armor Plating Reactive Plating Peak State ------------ > --- POWER ------------ Ion Engine > --- PROPULSION ------- Light Treads Improved Treads Improved Treads Improved Treads > --- UTILITY ---------- Cargo Storage Unit Heavy Armor Plating > --- WEAPON ----------- Grenade Launcher Grenade Launcher > --- INVENTORY -------- Ion Engine Light Treads Light Treads Medium Storage Unit Structural Scanner Trap Scanner Sensor Array Improved Terrain Scanner Melee Analysis Suite Reaction Control System Heavy Armor Plating Reactive Plating Reactive Plating Heavy EM Shotgun Heavy EM Shotgun Assault Rifle Assault Rifle Mining Laser [Rating: 22] Favorites ----------- Power Ion Engine Engine Ion Engine Propulsion Aluminum Leg Treads Improved Treads Leg Aluminum Leg Utility Medium Storage Unit Device Sensor Array Storage Medium Storage Unit Processor Signal Interpreter Protection Reactive Plating Weapon Assault Rifle Ballistic Gun Assault Rifle Launcher Grenade Launcher Special Weapon Mining Laser Build | -11 -10 -10 -10 -9 -8 ------- Run | Yrd Mat Min Exi Min Mat Slots Evolved 4 | . . . . . 4 Power . | . . . . . . Propulsion 2 | . . . . . 2 Utility 2 | . . . . . 2 Weapon . | . . . . . . Parts Attached 24 | 7 4 . 1 2 10 Power 1 | 1 . . . . . Engine 1 | 1 . . . . . Core . | . . . . . . Reactor . | . . . . . . Propulsion 7 | 2 . . . . 5 Treads 5 | . . . . . 5 Leg 2 | 2 . . . . . Wheel . | . . . . . . Hover . | . . . . . . Flight . | . . . . . . Utility 11 | 2 2 . 1 1 5 Device 5 | 1 1 . . 1 2 Storage 3 | 1 1 . . . 1 Processor 1 | . . . 1 . . Hackware . | . . . . . . Protection 2 | . . . . . 2 Artifact . | . . . . . . Weapon 5 | 2 2 . . 1 . Energy Gun . | . . . . . . Energy Cannon . | . . . . . . Ballistic Gun 2 | 2 . . . . . Ballistic Cannon . | . . . . . . Launcher 2 | . 1 . . 1 . Special Weapon 1 | . 1 . . . . Impact Weapon . | . . . . . . Slashing Weapon . | . . . . . . Piercing Weapon . | . . . . . . Special Melee Weapon . | . . . . . . Unidentified Prototypes . | . . . . . . Parts Lost 3 | . . . . . 3 Power 1 | . . . . . 1 Propulsion . | . . . . . . Utility . | . . . . . . Weapon 2 | . . . . . 2 Highest Loss Streak 3 | . . . . . 3 To Critical Strikes . | . . . . . . Average Backups 8 | 4 7 8 6 7 12 Power . | . 1 1 . 1 . Propulsion 1 | 1 2 2 2 2 1 Utility 3 | . 1 2 2 1 5 Weapon 2 | 1 2 3 2 3 3 Tool/Special . | . . . . . . Unused Backups 11 | . 1 . . . 10 Power 1 | . . . . . 1 Propulsion 1 | . . . . . 1 Utility 5 | . . . . . 5 Weapon 4 | . 1 . . . 3 Tool/Special . | . . . . . . Average Slot Usage (%) 95 | . 100 100 100 100 86 Engine 12 | . 14 14 14 14 8 Treads 11 | . . . . . 35 Leg 18 | . 28 28 28 28 . Device 12 | . 14 14 13 14 9 Storage 11 | . 14 14 9 14 9 Processor 1 | . . . 5 . . Protection 2 | . . . . . 6 Ballistic Gun 20 | . 22 28 28 26 8 Launcher 3 | . 3 . . 1 8 Peak Build Rating 22 | 7 8 8 8 8 22 Average Rating 10 | 5 7 8 7 7 18 On Entrance 6 | . 7 8 8 7 8 Avg Prop Armor Cover (%) . | . . . . . . Naked Turns 7 | . . . . . 7 Heaviest Build 166 | 15 21 20 20 22 166 Greatest Support 89 | 20 20 20 20 20 89 Greatest Overweight (x) 1 | . 1 . . 1 1 Average Overweight (x) . | . . . . . . Largest Inventory Capacity 30 | 8 10 10 10 10 30 Average Capacity 14 | 7 8 10 8 10 25 Most Carried 20 | 6 8 8 8 8 20 Average Carried 8 | 4 7 8 6 7 12 Final Capacity 10 | 8 10 10 10 10 5 Final Carried 8 | 6 8 8 7 8 5 Class Distribution -------------------- 61% | Mutant 24% | Hauler-Mutant 14% | Skirmisher Dominant Class ---------------- Mutant | -10/Materials Mutant | -10/Mines Mutant | -10/Exiles Mutant | -9/Mines Hauler-Mutant | -8/Materials Resources | -11 -10 -10 -10 -9 -8 ----------- Run | Yrd Mat Min Exi Min Mat Matter Collected 766 | 248 . . . 124 394 Remotely . | . . . . . . Salvage Created 510 | 62 34 . . 105 309 Parts 60 | 11 12 . . 8 29 Haulers Intercepted 3 | . . . . . 3 Recyclers Shooed 1 | 1 . . . . . Parts Field Recycled . | . . . . . . Retrieved Matter . | . . . . . . Parts Self-Destructed . | . . . . . . Prevented . | . . . . . . Parts Restored . | . . . . . . Kills | -11 -10 -10 -10 -9 -8 ------- Run | Yrd Mat Min Exi Min Mat Combat Hostiles Destroyed 14 | . 3 . . 3 8 Guns 4 | . 1 . . 1 2 AOE 10 | . 2 . . 2 6 Classes Destroyed 6 | 1 2 . . 1 2 Builder 5 | . 1 . . 1 3 Tunneler 4 | 3 1 . . . . Hauler 3 | . . . . . 3 Swarmer 6 | . 3 . . . 3 Grunt 6 | . . . . 3 3 Sentry 2 | . . . . . 2 Best Kill Streak 5 | 2 5 . . 4 5 Combat Bots Only 3 | . 3 . . 3 3 Max Kills in Single Turn 3 | 1 2 . . 2 3 Gunslinging . | . . . . . . Exploded 2 | . 1 . . 2 2 Melee . | . . . . . . Uniques/NPCs Destroyed . | . . . . . . Combat | -11 -10 -10 -10 -9 -8 -------- Run | Yrd Mat Min Exi Min Mat Hostile Shots Fired 133 | . 12 . . 3 118 Missed 45 | . 4 . . . 41 Hits 88 | . 8 . . 3 77 Projectile 88 | . 8 . . 3 77 Critical Strikes 3 | . . . . . 3 Damage Taken 1263 | . 63 . . 40 1160 Core 138 | . . . . 18 120 Absorbed by Shields . | . . . . . . Ignored by Resistances 49 | . . . . . 49 Core Remaining (%) 96 | 100 . . . 92 . Volleys Fired 50 | 10 6 . . 4 30 Largest 2 | 2 1 . . 2 2 Hottest 100 | 40 100 . . 60 100 Shots Fired 84 | 20 6 . . 8 50 Gun 57 | 20 1 . . 6 30 Cannon . | . . . . . . Launcher 24 | . 3 . . 2 19 Special 3 | . 2 . . . 1 Kinetic 57 | 20 1 . . 6 30 Thermal 3 | . 2 . . . 1 Explosive 24 | . 3 . . 2 19 Electromagnetic . | . . . . . . Robot Hit Streak 9 | 5 3 . . 8 9 Robot Miss Streak 4 | 3 . . . . 4 Penetration Max . | . . . . . . Secondary Targets . | . . . . . . Shots Hit Robots 36 | 9 2 . . 5 20 Core Hits 43 | 4 4 . . 9 26 Critical Kills . | . . . . . . Critical Parts Destroyed 1 | . . . . . 1 Critical Strikes 1 | . . . . . 1 Destroy 1 | . . . . . 1 Melee Attacks . | . . . . . . Impact . | . . . . . . Slashing . | . . . . . . Piercing . | . . . . . . Sneak Attacks . | . . . . . . Combat Hostiles . | . . . . . . Follow-up Attacks . | . . . . . . Damage Inflicted 1750 | 105 337 . . 332 976 Guns 363 | 105 12 . . 67 179 Cannons . | . . . . . . Explosions 1341 | . 325 . . 225 791 Melee . | . . . . . . Ramming 46 | . . . . 40 6 Kinetic 363 | 105 12 . . 67 179 Thermal 100 | . . . . 100 . Explosive 1241 | . 325 . . 125 791 Electromagnetic . | . . . . . . Impact . | . . . . . . Slashing . | . . . . . . Piercing . | . . . . . . Highest Corruption 1 | . . . . . 1 Average Corruption 1 | . . . . . 1 Corruption Purged . | . . . . . . Corruption Blocked . | . . . . . . Effects 2 | . . . . . 2 Message Errors 1 | . . . . . 1 Heat Flow Errors 1 | . . . . . 1 Overload Shots . | . . . . . . Overflow Damage 20 | . 15 . . . 5 Projectiles . | . . . . . . Explosions 20 | . 15 . . . 5 Melee . | . . . . . . Knockbacks . | . . . . . . Impact . | . . . . . . Kinetic . | . . . . . . Secondary . | . . . . . . Self-Inflicted Damage 136 | . . . . . 136 Shots 6 | . . . . . 6 Rammed 1 | . . . . . 1 Targets Rammed 10 | . . . . 9 1 Kicked 9 | . . . . 9 . Crushed . | . . . . . . Highest Temperature 292 | . 40 . . 6 292 Average Temperature 48 | . 20 . . 6 55 Received Heat Transfer 381 | . . . . 21 360 Siege Activations . | . . . . . . Martial Activations . | . . . . . . Shielding Activations . | . . . . . . Robots Disrupted . | . . . . . . Combat Hostiles . | . . . . . . Robots Corrupted . | . . . . . . Combat Hostiles . | . . . . . . Parts Fried . | . . . . . . Impact Corruptions . | . . . . . . Robots Melted . | . . . . . . Combat Hostiles . | . . . . . . Parts Melted . | . . . . . . Heat Transferred 100 | . . . . 100 . Parts Sabotaged . | . . . . . . Parts Stolen . | . . . . . . Parts Stripped . | . . . . . . Power Chain Reactions . | . . . . . . Alert | -11 -10 -10 -10 -9 -8 ------- Run | Yrd Mat Min Exi Min Mat Maximum Alert Level . | . . . . . . Low Security (%) 100 | 100 100 100 . 100 100 Level 1 . | . . . . . . Level 2 . | . . . . . . Level 3 . | . . . . . . Level 4 . | . . . . . . Level 5 . | . . . . . . High Security . | . . . . . . Max Security . | . . . . . . Peak Influence 152 | 10 102 27 . 98 152 Initial 27 | . . 27 . . . Average 37 | 1 31 16 . 16 61 Influence Increases 594 | 15 118 . . 108 353 Destroy 0b10 Robot/C 280 | . 60 . . 60 160 Destroy 0b10 Robot/NC 60 | 15 10 . . 5 30 Destroy Leader 56 | . 10 . . 10 36 Successful Hack 23 | . 6 . . . 17 Disable Machine 60 | . 15 . . 15 30 Destroy Structure 100 | . 17 . . 18 65 Lose Combat Pursuer 15 | . . . . . 15 Influence Decreases 520 | 15 46 72 . 108 279 Entered New Map 45 | . . 45 . . . Time Decay 445 | 15 46 27 . 108 249 Lost Part 30 | . . . . . 30 Squads Dispatched 6 | . . . . . 6 Investigation 1 | . . . . . 1 Extermination . | . . . . . . Reinforcement 4 | . . . . . 4 Assault . | . . . . . . Garrison 1 | . . . . . 1 Intercept . | . . . . . . Searches Triggered . | . . . . . . Construction Impeded 1 | . . . . . 1 Haulers Reinforced . | . . . . . . Active Scanning Responses . | . . . . . . Cargo Convoy Interrupts . | . . . . . . Stealth | -11 -10 -10 -10 -9 -8 --------- Run | Yrd Mat Min Exi Min Mat Distress Signals 3 | . . . . . 3 Communications Jammed . | . . . . . . Distress Signals . | . . . . . . Times Spotted 27 | . 3 . . 3 21 Peak Tracking Total 6 | . 3 . . 3 6 Tactical Retreats 1 | . . . . . 1 Traps | -11 -10 -10 -10 -9 -8 ------- Run | Yrd Mat Min Exi Min Mat Traps Triggered . | . . . . . . Indirectly . | . . . . . . Trap Hack Attempts . | . . . . . . Triggered . | . . . . . . Disarmed . | . . . . . . Reprogrammed . | . . . . . . Reused . | . . . . . . Traps Extracted . | . . . . . . Installed . | . . . . . . Triggered . | . . . . . . Machines | -11 -10 -10 -10 -9 -8 ---------- Run | Yrd Mat Min Exi Min Mat Machines Disabled 4 | . 1 . . 1 2 Max in Single Turn 1 | . 1 . . 1 1 Machines Repaired . | . . . . . . Machines Dismantled . | . . . . . . Machines Sabotaged . | . . . . . . Overloaded Fab Kills . | . . . . . . Hacking | -11 -10 -10 -10 -9 -8 --------- Run | Yrd Mat Min Exi Min Mat Machines Accessed 8 | . 2 . . . 6 Terminals 6 | . 2 . . . 4 Fabricators . | . . . . . . Repair Stations 1 | . . . . . 1 Recycling Units . | . . . . . . Scanalyzers . | . . . . . . Garrison Access 1 | . . . . . 1 Total Hacks 22 | . 7 . . . 15 Successful 9 | . 2 . . . 7 Failed 13 | . 5 . . . 8 Catastrophic 1 | . . . . . 1 Database Lockouts . | . . . . . . Manual 13 | . 6 . . . 7 Terminals 19 | . 7 . . . 12 Fabricators . | . . . . . . Repair Stations 1 | . . . . . 1 Recycling Units . | . . . . . . Scanalyzers . | . . . . . . Garrison Access 2 | . . . . . 2 Terminal Hacks 8 | . 2 . . . 6 Robot Analysis 2 | . 1 . . . 1 Prototype ID Bank 1 | . . . . . 1 Terminal Index 1 | . . . . . 1 Reinforcement Status 1 | . . . . . 1 Zone Layout 3 | . 1 . . . 2 Fabricator Hacks . | . . . . . . Repair Station Hacks 1 | . . . . . 1 Scan Component 1 | . . . . . 1 Recycling Unit Hacks . | . . . . . . Scanalyzer . | . . . . . . Garrison Access Hacks . | . . . . . . Unauthorized Hacks . | . . . . . . Terminals . | . . . . . . Fabricators . | . . . . . . Repair Stations . | . . . . . . Recycling Units . | . . . . . . Scanalyzers . | . . . . . . Garrison Access . | . . . . . . Data Cores Recovered . | . . . . . . Used . | . . . . . . Hacking Detections 7 | . 2 . . . 5 Full Trace Events 1 | . . . . . 1 Feedback Events 1 | . . . . . 1 Corruption 1 | . . . . . 1 Feedback Blocked . | . . . . . . Robot Schematics Acquired . | . . . . . . Robots Built . | . . . . . . Authchips . | . . . . . . Time . | . . . . . . Total Robot Build Rating . | . . . . . . Part Schematics Acquired . | . . . . . . Parts Built . | . . . . . . Authchips . | . . . . . . Time . | . . . . . . Total Part Build Rating . | . . . . . . Part Studies Acquired . | . . . . . . Parts Repaired . | . . . . . . Time . | . . . . . . Parts Recycled . | . . . . . . Recycled Matter . | . . . . . . Retrieved Matter . | . . . . . . Retrieved Components . | . . . . . . Parts Scanalyzed . | . . . . . . Part Schematics Acquired . | . . . . . . Parts Damaged . | . . . . . . Bothacking | -11 -10 -10 -10 -9 -8 ------------ Run | Yrd Mat Min Exi Min Mat Used RIF Installer . | . . . . . . Robots Hacked . | . . . . . . Non-combat . | . . . . . . Combat . | . . . . . . Robot Hacks Applied . | . . . . . . Relay Couplers Released . | . . . . . . Fabnet Peak Effective % . | . . . . . . Robots Rewired . | . . . . . . Allies Hacked . | . . . . . . Hacks Repelled . | . . . . . . Allies | -11 -10 -10 -10 -9 -8 -------- Run | Yrd Mat Min Exi Min Mat Total Allies . | . . . . . . Largest Group . | . . . . . . Highest-Rated Group . | . . . . . . Highest-Rated Ally . | . . . . . . Total Orders . | . . . . . . Ally Attacks . | . . . . . . Total Damage . | . . . . . . Kills . | . . . . . . Allies Corrupted . | . . . . . . Allies Melted . | . . . . . . Intel | -11 -10 -10 -10 -9 -8 ------- Run | Yrd Mat Min Exi Min Mat Active Infowar (turns) 2337 | 17 166 60 794 706 594 Sensors 1207 | . 153 60 794 200 . Structural 1100 | . . . . 506 594 Traps 165 | . . . . . 165 Seismic 30 | 17 13 . . . . Robot Analysis Total 2 | . 1 . . . 1 Derelict Logs Recovered 2 | . . 1 . 1 . Drone Launches . | . . . . . . Drone Recoveries . | . . . . . . Exploration | -11 -10 -10 -10 -9 -8 ------------- Run | Yrd Mat Min Exi Min Mat Turns Passed 2787 | 117 166 60 850 706 888 Spaces Moved 1792 | 64 115 51 703 548 311 Core 21 | 9 . . . . 12 Treads 291 | . . . . . 291 Legs 1480 | 55 115 51 703 548 8 Wheels . | . . . . . . Hover . | . . . . . . Flight . | . . . . . . Fastest Speed 50 | 50 120 120 120 120 50 Average Speed 137 | 110 120 120 120 122 217 Slowest Speed 240 | 120 190 120 120 190 240 Overloaded Moves . | . . . . . . Propulsion Burnouts . | . . . . . . Robots Hopped . | . . . . . . Potential Cave-ins . | . . . . . . Cave-ins Triggered . | . . . . . . Exploration Rate (%) 42 | 3 18 22 78 94 40 Regions Visited 5 Branch Regions 3 Pre-discovered Areas . | . . . . . . Known Exits Taken 1 | . . . 1 . . Unknown Exits Taken 4 | 1 1 1 . 1 . Scrap Searched 1 | . . . . 1 . Spaces Dug 1 | . . . . . 1 Terrain Destroyed 106 | . 16 . . 26 64 Melee . | . . . . . . Projectile 1 | . . . . . 1 AOE 105 | . 16 . . 26 63 Terrain Rammed . | . . . . . . Walls Destroyed . | . . . . . . Machines Disabled . | . . . . . . Actions | -11 -10 -10 -10 -9 -8 --------- Run | Yrd Mat Min Exi Min Mat Total 2015 | 87 132 50 708 571 467 Wait 97 | . . . . 5 92 Move 1787 | 63 114 50 702 547 311 Hop . | . . . . . . Pick Up 26 | 7 4 . 3 1 11 Fast Attach 11 | 6 . . . . 5 Attach 5 | 1 . . . . 4 Detach 4 | . . . . . 4 Swap 19 | . 5 . 3 5 6 Drop 6 | . 3 . . . 3 Fire 50 | 10 6 . . 4 30 Melee . | . . . . . . Ram . | . . . . . . Kick 9 | . . . . 9 . Crush 1 | . . . . . 1 Escape Stasis . | . . . . . . Rewire . | . . . . . . Trap . | . . . . . . Miscellaneous . | . . . . . . Route ------- -11/Scrapyard -10/Materials -10/Mines -10/Exiles (discovered 2 exits: *Min x2) -9/Mines (discovered 2 exits: *Mat x2) -8/Materials History --------- Turn | Location | Event 18 | -11/Scrapyard | Discovered new exit (range 16) 118 | -11/Scrapyard | Entered Materials 135 | -10/Materials | Discovered new exit (range 17) 195 | -10/Materials | Met 8R-AWN 284 | -10/Materials | Entered Mines 286 | -10/Mines | Followed 8R-AWN into the Mines 312 | -10/Mines | Build established: Mutant 334 | -10/Mines | Learned 2 Materials zone layouts 340 | -10/Mines | Discovered new exit (range 5) 344 | -10/Mines | Entered Exiles 362 | -10/Exiles | Discovered new exit (range 15) 382 | -10/Exiles | Welcomed by 8R-AWN 402 | -10/Exiles | Met EX-HEX 436 | -10/Exiles | Met EX-BIN 452 | -10/Exiles | Aligned with FarCom system 454 | -10/Exiles | Given EX-Vault access code 487 | -10/Exiles | Met EX-DEC 533 | -10/Exiles | Visited The Gauntlet 629 | -10/Exiles | Discovered new exit (range 11) 846 | -10/Exiles | Learned about 8R-AWN's background 892 | -10/Exiles | Identified exit to Mines 1194 | -10/Exiles | Entered Mines 1339 | -9/Mines | Discovered new exit (range 12) 1467 | -9/Mines | Discovered new exit (range 5) 1900 | -9/Mines | Entered Materials 1900 | -8/Materials | Evolved 4 slots: Propulsion x2, Utility x2 2409 | -8/Materials | Build established: Hauler-Mutant 2729 | -8/Materials | Garrison activated, responded to threat 2781 | -8/Materials | Released all parts (6) 2788 | -8/Materials | Self-destructed Last Messages --------------- 02735_ Y-45 Defender destroyed. 02739_ Critical hit (Burn: +37). 02741_ U-05 Engineer lays Concrete. 02755_ Grenade Launcher destroyed. 02762_ C-30 ARC bursts open, deploying its payload. 02762_ H-55 Commando unfolds itself. 02762_ Slug penetrates Wall. 02777_ Grenade Launcher destroyed. 02780_ Slug penetrates Wall. 02781_ Released Hvy. Armor Plating. 02781_ Released Cargo Storage Unit. 02781_ Released Imp. Treads. 02781_ Released Lgt. Treads. 02781_ Released Imp. Treads. [Achievement: Live, Flee, And Rebuild] 02782_ GI1MZZ=KFTVIVLB9BKOTWXHI/UBHMUY%I7F 02782_ W-25 Informer sends out distress signal. 02783_ Slug penetrates O-24 Administrator. 02786_ Slug penetrates Wall. Map ----- +----------------------------------------------------+ | | | ????????????????????????????????????????????????## | | ????????????????????????????????????????????????# | | ????????????????????????????????????????????????# | | ??########??????????????????????????????????????# | | ??# ! #?#####################????????????????# | | ??# ### #????????????????## | | ??# "" ## #?????############# | | ??# "G ### """ """ " #?????# ! | | ## "" ]#?# """ """ T #?????# " " """ | | #?# """ """ " #?????# "R" !"""" | | ! ### ####### """ """| | | + ! ! | | #####################+################### | | #?# #???????# #??????????????? | | #??# """ #???????# #??????????????? | | *%= # #??#""""" #???????#"S #??????????????? | | [ # #??#""""" #???????#""" #??????????????? | | ## #??#""""" #???????# "" #??????????????? | | ##### #??# """ #???????# #??????????????? | | # #??# #???????########??????????????? | | " + #??# #?????########????????????????? | | " # #??# ####### #????????????????? | | T # #########+### # ]!= #????????????????? | | " # Y =[!!]!= # ]== #????????????????? | | " + Y ==|*[!= @ != #????????????????? | | # h [!!![!w # #????????????????? | | ### ########### # #????????????????? | | #?# #?????????### ##########????????????????? | | #?# #???????????# #?????????????????????????? | | #? !???????????# #?????????????????????????? | | ## ###? ???????????# #?????????????????????????? | | ?###??? ???????????# #?????????????????????????? | | ???????# #??????????? Y ?????????????????????????? | | ???????# #??????????? ?????????????????????????? | | ??????? #??????????? ?????????????????????????? | | ??????? ???????????? ?????????????????????????? | | ??????? %???????????? ?????????????????????????? | | ??????? ???????????? ?????????????????????????? | | ???????##???????????? ???????????????????????????? | | ?????????????????????????????????????????????????? | | ?????????????????????????????????????????????????? | | ?????????????????????????????????????????????????? | | ?????????????????????????????????????????????????? | | ?????????????????????????????????????????????????? | | ?????????????????????????????????????????????????? | | ?????????????????????????????????????????????????? | | ?????????????????????????????????????????????????? | | ?????????????????????????????????????????????????? | | ?????????????????????????????????????????????????? | +----------------------------------------------------+ Best States ------------- Heat Dissipation 31 Energy Generation 10 Energy Capacity 250 Matter Stores 300 Matter Capacity 300 Sight Range 16 Robot Scan Range 14 Terrain Scan Density 10 Armor Coverage 600 Resistance: KI 20 Evasion (%) 55 Recoil Reduction 4 Item Schematics ----------------- None Robot Schematics ------------------ None Fabricated ------------ Nothing Repaired ---------- Nothing Studied --------- None Alien Tech Used ----------------- None Achievements -------------- Follow The Leader Heavy Suspicion Live, Flee, And Rebuild Tank Challenges ------------ None Game ------ Seed DefenseFactoryBasin Manual? 0 Play Time 00:22:07 Cumulative 8.5 hours Start 2025.11.10 @ 23:46:32 End 2025.11.11 @ 00:08:29 Sessions 1 Manual Loads 0 Difficulty Rogue Special Mode None Game No. 20 Rogue 20 Adventurer 0 Explorer 0 Win Type - Total 0 Types 0/0/0/0/0/0/0/0/0/0 Lore% 19 Gallery% 11 Achievement% 12 Wizard Run 0 Options --------- Layout 1 ASCII 0 Keyboard 0 Movement Numpad Keybinds 0 Fullscreen 1 Font 24/Smallcaps Map View 50x35 Zoom Use 0% Tactical HUD 1 Map Filters NONE Filters NONE Steam 1 RUN: 063e5bb4-dd65-4eb8-9e44-2ef16f8394c2